bitfinex/quotes_SOLUSD_20241101
["timestamp","ask_amount","ask_price","bid_price","bid_amount"]
[1730493128613,8.86463226,167.01,166.95,8.86463226]
[1730493128827,8.86463226,167.0,166.95,8.86463226]
[1730493132040,8.86463226,167.01,166.96,5.9894]
[1730493134238,5.9877,167.01,166.96,8.86463226]
[1730493135238,15.5738798,167.06,167.01,20.0]
[1730493135239,0.6089798,167.06,167.01,20.0]
[1730493135435,0.6089798,167.06,167.05,8.86463226]
[1730493137517,0.6089798,167.06,167.05,14.85083226]
[1730493156645,0.6089798,167.06,167.03,8.86463226]
[1730493156852,0.6089798,167.06,167.02,8.86463226]
[1730493157059,0.6089798,167.06,167.02,29.81983226]
[1730493157959,6.5948798,167.06,167.02,23.83283226]
[1730493158140,15.45951206,167.06,167.01,5.9875]
[1730493159343,32.64151626,167.05,167.0,8.86463226]
[1730493161046,5.9865,167.04,167.0,8.86463226]
[1730493161868,14.85113226,167.04,166.99,20.9587]
[1730493162761,14.85113226,167.04,166.99,23.83523226]
[1730493163175,5.9865,167.04,166.99,23.83523226]
[1730493164355,23.776884,167.05,167.01,8.86463226]
[1730493164559,29.763184,167.05,167.01,8.86463226]
[1730493165685,29.763184,167.05,167.0,8.86463226]
[1730493165977,29.763184,167.05,167.0,14.85243226]
[1730493168076,29.763184,167.05,167.0,8.86463226]
[1730493169468,29.763184,167.05,167.0,14.85233226]
[1730493176880,23.776884,167.05,167.01,8.86463226]
[1730493177066,29.763284,167.05,167.01,8.86463226]
[1730493178461,29.763284,167.05,167.01,14.85223226]
[1730493180678,29.763284,167.05,167.01,8.86463226]
[1730493183176,0.6089798,167.06,167.03,8.86463226]
[1730493183371,0.6089798,167.06,167.04,8.86463226]
[1730493183573,0.6089798,167.06,167.05,8.86463226]
[1730493185078,0.6089798,167.06,167.05,14.85083226]
[1730493191681,0.6089798,167.06,167.04,29.81713226]
[1730493192187,0.6089798,167.06,167.02,8.86463226]
[1730493192366,0.6089798,167.06,167.02,14.85183226]
[1730493192681,0.6089798,167.06,167.03,8.86463226]
[1730493193677,0.6089798,167.06,167.03,14.85153226]
[1730493196365,0.6089798,167.06,167.03,8.86463226]
[1730493196684,0.6089798,167.06,167.02,14.9682]
[1730493196685,6.5948798,167.06,167.02,20.9554]
[1730493196891,6.5948798,167.06,167.02,14.9682]
[1730493197681,6.5948798,167.06,167.01,14.85193226]
[1730493197889,8.86463226,167.04,166.99,30.0793729]
[1730493198068,5.9869,167.03,166.99,14.9709]
[1730493198263,14.85153226,167.03,166.99,14.9709]
[1730493198990,5.9869,167.03,166.99,14.9709]
[1730493200786,8.86463226,167.03,166.99,14.9709]
[1730493201181,8.86463226,167.01,166.96,12.23265362]
[1730493201499,8.86463226,167.0,166.96,9.04552105]
[1730493201873,8.86463226,167.01,166.96,9.04552105]
[1730493202579,14.85233226,167.01,166.96,5.9892]
[1730493203998,14.85233226,167.01,166.96,8.86463226]
[1730493204284,8.86463226,166.99,166.96,3.05561874]
[1730493204477,8.86463226,166.99,166.94,14.85473226]
[1730493204979,23.776884,167.0,166.96,8.86463226]
[1730493205484,23.776884,167.0,166.97,8.86463226]
[1730493206286,23.776884,167.0,166.96,8.86463226]
[1730493206491,29.765084,167.0,166.95,14.85433226]
[1730493206689,38.62971626,167.0,166.95,14.85433226]
[1730493207795,38.62971626,167.0,166.94,23.84003226]
[1730493207976,8.86463226,166.99,166.94,14.9754]
[1730493209189,8.86463226,166.98,166.94,14.9754]
[1730493210693,14.85343226,166.98,166.94,14.9754]
[1730493210897,5.9888,166.98,166.94,14.9754]
[1730493211277,5.9888,166.98,166.94,23.84003226]
[1730493211982,5.9888,166.98,166.95,8.86463226]
[1730493215491,29.764984,167.0,166.96,8.86463226]
[1730493215702,29.764984,167.0,166.97,8.86463226]
[1730493218177,21.8056,167.01,166.97,8.86463226]
[1730493218375,8.86463226,167.03,166.98,8.86463226]
[1730493218675,5.9865,167.04,166.99,8.86463226]
[1730493218883,5.9865,167.04,167.01,8.86463226]
[1730493223098,5.9865,167.04,167.0,8.86463226]
[1730493224687,5.9865,167.04,166.99,8.86463226]
[1730493229701,32.64151626,167.03,166.98,14.85303226]
[1730493231598,5.9873,167.02,166.98,14.85303226]
[1730493233991,5.9873,167.02,166.99,8.86463226]
[1730493234883,29.763384,167.04,167.0,8.86463226]
[1730493235594,29.763384,167.04,167.01,8.86463226]
[1730493235999,29.763384,167.04,167.0,8.86463226]
[1730493236606,30.06483226,167.05,167.0,8.86463226]
[1730493237408,21.2002,167.05,167.0,8.86463226]
[1730493239611,21.2002,167.05,167.0,14.85243226]
[1730493243211,15.2137,167.05,167.02,8.86463226]
[1730493243417,6.5948798,167.06,167.02,8.86463226]
[1730493244608,6.5948798,167.06,167.02,14.85183226]
[1730493246100,6.5948798,167.06,167.03,8.86463226]
[1730493246821,0.6089798,167.06,167.03,8.86463226]
[1730493247610,6.5948798,167.06,167.01,8.86463226]
[1730493249013,6.5948798,167.06,167.01,14.85203226]
[1730493249417,6.5948798,167.06,167.01,8.86463226]
[1730493251301,6.5948798,167.06,167.01,14.85223226]
[1730493251702,6.5948798,167.06,167.02,8.86463226]
[1730493253123,0.6089798,167.06,167.03,8.86463226]
[1730493253540,0.6089798,167.06,167.03,14.85153226]
[1730493253818,0.6089798,167.06,167.04,8.86463226]
[1730493254213,0.6089798,167.06,167.05,8.86463226]
[1730493256602,0.6089798,167.06,167.05,14.85083226]
[1730493264727,0.6089798,167.06,167.05,5.9862]
[1730493264919,0.6089798,167.06,167.04,5.9864]
[1730493266634,0.6089798,167.06,167.04,14.85103226]
[1730493266817,0.6089798,167.06,167.04,29.81743226]
[1730493267431,0.6089798,167.06,167.05,14.85083226]
[1730493270635,0.6089798,167.06,167.04,8.86463226]
[1730493272039,0.6089798,167.06,167.05,5.9862]
[1730493273637,0.6089798,167.06,167.04,14.9661]
[1730493275638,6.5947798,167.06,167.02,14.85183226]
[1730493275844,6.5947798,167.06,167.02,5.9872]
[1730493276226,6.5947798,167.06,167.01,23.83363226]
[1730493276447,15.45941206,167.06,167.01,29.82113226]
[1730493276626,15.45941206,167.06,167.01,14.469]
[1730493276940,8.86463226,167.05,167.01,14.469]
[1730493277832,15.45941206,167.06,167.01,20.4566]
[1730493278026,15.45941206,167.06,167.01,29.32123226]
[1730493282939,15.45941206,167.06,167.01,14.469]
[1730493285157,15.45941206,167.06,167.01,20.4566]
[1730493285465,0.6089798,167.06,167.02,8.86463226]
[1730493285639,0.6089798,167.06,167.03,8.86463226]
[1730493286347,0.6089798,167.06,167.02,8.86463226]
[1730493287942,0.6089798,167.06,167.02,14.85153226]
[1730493289653,0.6089798,167.06,167.02,29.81973226]
[1730493289952,0.6089798,167.06,167.03,8.86463226]
[1730493290169,0.6089798,167.06,167.04,8.86463226]
[1730493290455,0.6089798,167.06,167.05,8.86463226]
[1730493290642,0.6089798,167.06,167.04,8.86463226]
[1730493291254,0.6089798,167.06,167.04,14.85083226]
[1730493291630,0.6089798,167.06,167.04,5.9862]
[1730493297661,0.6089798,167.06,167.04,8.86463226]
[1730493298054,0.6089798,167.06,167.03,8.86463226]
[1730493300462,0.6089798,167.06,167.03,14.85143226]
[1730493300757,0.6089798,167.06,167.03,5.9868]
[1730493300935,0.6089798,167.06,167.03,14.85143226]
[1730493301136,0.6089798,167.06,167.05,8.86463226]
[1730493302846,0.6089798,167.06,167.05,14.85083226]
[1730493304450,0.6089798,167.06,167.05,17.90064244]
[1730493304639,0.6089798,167.06,167.05,14.85083226]
[1730493306262,0.6089798,167.06,167.05,17.90061116]
[1730493306866,0.6089798,167.06,167.05,14.85083226]
[1730493309663,0.6089798,167.06,167.05,17.90184721]
[1730493311450,0.6089798,167.06,167.05,14.85083226]
[1730493319958,9.47361206,167.06,167.01,15.10630677]
[1730493320160,8.86463226,167.04,167.01,6.24167451]
[1730493320360,6.5947798,167.06,166.99,8.86463226]
[1730493320578,0.6089798,167.06,167.02,3.04634607]
[1730493320951,0.6089798,167.06,167.0,3.04634607]
[1730493321171,0.6089798,167.06,167.02,8.86463226]
[1730493322270,0.6089798,167.06,167.04,8.86463226]
[1730493325383,0.6089798,167.06,167.03,8.86463226]
[1730493325680,0.6089798,167.06,167.03,14.85143226]
[1730493326579,0.6089798,167.06,167.02,8.86463226]
[1730493327276,15.45951206,167.06,167.01,3.04539947]
[1730493327476,8.86463226,167.05,167.01,3.04539947]
[1730493327781,15.45951206,167.06,167.01,3.04539947]
[1730493328284,15.45951206,167.06,167.01,11.91003173]
[1730493328465,15.45951206,167.06,167.01,14.85213226]
[1730493329397,15.45951206,167.06,167.01,17.89814822]
[1730493329679,15.45951206,167.06,167.01,9.03351596]
[1730493331182,15.45951206,167.06,167.01,5.9875]
[1730493332164,8.86463226,167.05,167.01,5.9875]
[1730493333483,8.86463226,167.03,167.0,3.04601596]
[1730493334683,24.75283226,167.01,166.98,3.04601596]
[1730493334887,24.75283226,167.01,166.97,3.04601596]
[1730493335092,15.8882,167.01,166.98,8.86463226]
[1730493335391,15.8882,167.01,166.98,11.91064822]
[1730493336481,15.8882,167.01,166.98,8.86463226]
[1730493336670,15.8882,167.01,166.98,11.90827076]
[1730493337887,15.8882,167.01,166.98,3.0436385]
[1730493339295,8.86463226,167.0,166.95,5.9895]
[1730493339474,8.86463226,166.99,166.95,5.9895]
[1730493340690,14.85273226,167.0,166.95,14.85413226]
[1730493340894,5.9881,167.0,166.95,14.85413226]
[1730493341286,14.85273226,167.0,166.95,8.86463226]
[1730493341488,8.86463226,166.99,166.94,21.21236872]
[1730493341699,8.86463226,166.98,166.94,21.21236872]
[1730493341994,8.86463226,166.97,166.92,14.85543226]
[1730493342593,14.85393226,166.97,166.91,23.84223226]
[1730493342791,8.86463226,166.96,166.91,23.84223226]
[1730493343382,24.56943226,166.95,166.91,14.9776]
[1730493343604,15.7048,166.99,166.94,8.86463226]
[1730493343783,15.7048,166.99,166.95,8.86463226]
[1730493344100,24.56943226,166.99,166.94,8.86463226]
[1730493344500,24.56943226,166.99,166.91,14.9776]
[1730493344695,5.9887,166.98,166.93,14.85503226]
[1730493345280,5.9887,166.98,166.94,8.86463226]
[1730493346202,5.9887,166.98,166.93,8.86463226]
[1730493346997,5.9887,166.98,166.94,8.86463226]
[1730493348089,14.85333226,166.98,166.93,14.85503226]
[1730493349498,14.85333226,166.98,166.93,8.86463226]
[1730493349704,8.86463226,166.97,166.92,8.86463226]
[1730493350699,5.9894,166.96,166.92,8.86463226]
[1730493351387,5.9894,166.96,166.91,29.83313226]
[1730493351715,14.85403226,166.96,166.91,29.83313226]
[1730493356706,15.7048,166.99,166.91,29.83313226]
[1730493356707,8.86463226,166.97,166.91,29.83313226]
[1730493356901,8.86463226,166.96,166.91,29.83313226]
[1730493357701,5.9898,166.95,166.91,20.9685]
[1730493358091,5.9898,166.95,166.91,29.83313226]
[1730493358788,8.86463226,166.92,166.89,6.24804804]
[1730493359104,8.86463226,166.91,166.86,5.993]
[1730493359605,8.86463226,166.91,166.86,14.85763226]
[1730493360387,8.86463226,166.9,166.85,14.85793226]
[1730493360592,8.86463226,166.9,166.85,5.9933]
[1730493360790,8.86463226,166.91,166.85,14.85793226]
[1730493362006,5.9905,166.93,166.85,14.85793226]
[1730493362309,8.86463226,166.89,166.85,5.9933]
[1730493364095,14.85653226,166.89,166.84,6.25083963]
[1730493364392,14.85653226,166.89,166.83,14.85863226]
[1730493364912,5.9919,166.89,166.84,8.86463226]
[1730493365417,14.85653226,166.89,166.83,8.86463226]
[1730493367806,14.85653226,166.89,166.83,14.85833226]
[1730493368198,5.9919,166.89,166.84,8.86463226]
[1730493368594,14.85653226,166.89,166.83,29.84363226]
[1730493368816,14.85653226,166.89,166.84,8.86463226]
[1730493369415,14.85653226,166.89,166.84,14.85833226]
[1730493370397,8.86463226,166.9,166.84,14.85833226]
[1730493372196,8.86463226,166.89,166.83,23.84993226]
[1730493373024,8.86463226,166.88,166.83,14.9853]
[1730493374222,14.85713226,166.88,166.83,20.9794]
[1730493378413,8.86463226,166.86,166.81,6.24660084]
[1730493378713,5.9925,166.88,166.83,8.86463226]
[1730493379223,14.85713226,166.88,166.82,8.86463226]
[1730493380122,8.86463226,166.86,166.81,14.9871]
[1730493380419,8.86463226,166.85,166.81,14.9871]
[1730493380621,14.85833226,166.85,166.81,14.9871]
[1730493383101,14.85833226,166.85,166.8,8.86463226]
[1730493384322,5.9937,166.85,166.81,8.86463226]
[1730493385626,5.9937,166.85,166.81,14.85923226]
[1730493386421,5.9937,166.85,166.81,17.91213913]
[1730493387119,5.9937,166.85,166.81,14.85923226]
[1730493388009,5.9937,166.85,166.8,29.84733226]
[1730493392109,5.9937,166.85,166.81,14.85923226]
[1730493395211,8.86463226,166.87,166.81,14.85923226]
[1730493396525,5.993,166.86,166.81,17.91322018]
[1730493396724,5.993,166.86,166.81,14.85923226]
[1730493396923,14.85763226,166.86,166.81,14.85923226]
[1730493397429,14.85763226,166.86,166.81,17.91210616]
[1730493398330,8.86463226,166.84,166.81,3.0528739]
[1730493398535,8.86463226,166.83,166.8,14.9875]
[1730493399035,8.86463226,166.84,166.8,14.9875]
[1730493399736,5.9941,166.83,166.8,14.9875]
[1730493401610,5.9941,166.83,166.8,3.0540262]
[1730493401817,5.9941,166.83,166.79,11.91865846]
[1730493402628,5.9941,166.83,166.79,8.86463226]
[1730493402820,5.9938,166.84,166.79,17.91501484]
[1730493403015,8.86463226,166.87,166.82,8.86463226]
[1730493403230,8.86463226,166.87,166.79,30.29143501]
[1730493403231,15.7369,166.89,166.84,8.86463226]
[1730493403420,21.729,166.89,166.84,8.86463226]
[1730493403621,30.59363226,166.89,166.84,8.86463226]
[1730493403824,30.59363226,166.89,166.83,8.86463226]
[1730493404236,30.59363226,166.89,166.83,11.91981484]
[1730493404539,30.59363226,166.89,166.84,3.05518258]
[1730493406912,30.59363226,166.89,166.85,3.05518258]
[1730493407116,30.59363226,166.89,166.84,3.05518258]
[1730493407417,30.59363226,166.89,166.85,3.05518258]
[1730493407734,30.59363226,166.89,166.84,11.91981484]
[1730493408121,30.59363226,166.89,166.85,3.05518258]
[1730493408632,14.85713226,166.88,166.85,3.05518258]
[1730493409517,14.85713226,166.88,166.84,8.86463226]
[1730493409717,14.85713226,166.88,166.85,3.06022119]
[1730493410036,14.85713226,166.88,166.84,3.06022119]
[1730493410224,14.85713226,166.88,166.85,3.06022119]
[1730493410424,5.9925,166.88,166.84,8.86463226]
[1730493410628,5.9925,166.88,166.85,3.06043334]
[1730493410831,5.9925,166.88,166.84,8.86463226]
[1730493411018,5.9925,166.88,166.85,3.06087536]
[1730493411218,5.9925,166.88,166.84,8.86463226]
[1730493411419,5.9925,166.88,166.85,3.06108286]
[1730493411628,5.9925,166.88,166.84,8.86463226]
[1730493411819,5.9925,166.88,166.85,3.0609516]
[1730493412020,5.9925,166.88,166.84,8.86463226]
[1730493412237,5.9925,166.88,166.85,3.06084659]
[1730493412433,5.9925,166.88,166.84,8.86463226]
[1730493412740,5.9925,166.88,166.85,3.06104238]
[1730493413033,5.9925,166.88,166.84,8.86463226]
[1730493413721,5.9925,166.88,166.85,3.06101217]
[1730493413924,5.9925,166.88,166.84,8.86463226]
[1730493414137,5.9925,166.88,166.85,3.06155232]
[1730493414344,14.85713226,166.88,166.83,8.86463226]
[1730493414644,14.85713226,166.88,166.84,3.06154123]
[1730493414939,14.85713226,166.88,166.85,3.06154123]
[1730493415240,14.85713226,166.88,166.83,14.85863226]
[1730493415421,14.85713226,166.88,166.84,3.06169679]
[1730493415621,14.85713226,166.88,166.85,3.06169679]
[1730493415837,14.85713226,166.88,166.83,14.85863226]
[1730493416033,14.85713226,166.88,166.84,3.0616557]
[1730493416237,14.85713226,166.88,166.85,3.0616557]
[1730493416440,14.85713226,166.88,166.83,14.85863226]
[1730493416930,14.85713226,166.88,166.84,3.06202828]
[1730493417443,14.85713226,166.88,166.85,3.06202828]
[1730493417642,14.85713226,166.88,166.83,14.85863226]
[1730493417939,14.85713226,166.88,166.84,3.06111906]
[1730493418121,14.85713226,166.88,166.85,3.06111906]
[1730493418325,14.85713226,166.88,166.83,14.85863226]
[1730493418524,14.85713226,166.88,166.84,3.06132741]
[1730493418724,14.85713226,166.88,166.85,3.06132741]
[1730493418925,14.85713226,166.88,166.83,14.85863226]
[1730493419139,14.85713226,166.88,166.84,3.06134025]
[1730493419339,14.85713226,166.88,166.85,3.06134025]
[1730493419642,14.85713226,166.88,166.86,3.06138189]
[1730493419843,14.85713226,166.88,166.83,14.85863226]
[1730493420141,14.85713226,166.88,166.84,3.06139207]
[1730493420340,8.86463226,166.87,166.84,3.06139207]
[1730493420531,8.86463226,166.87,166.85,3.06139207]
[1730493420731,8.86463226,166.87,166.86,3.06139207]
[1730493421448,8.86463226,166.87,166.84,3.06139207]
[1730493421748,8.86463226,166.87,166.85,3.06139207]
[1730493421952,8.86463226,166.87,166.83,5.994]
[1730493422124,8.86463226,166.87,166.84,3.0616138]
[1730493422325,8.86463226,166.87,166.85,3.0616138]
[1730493422525,8.86463226,166.87,166.83,5.994]
[1730493422838,8.86463226,166.87,166.84,3.0588229]
[1730493423022,8.86463226,166.87,166.85,3.0588229]
[1730493423223,8.86463226,166.87,166.83,5.994]
[1730493423430,8.86463226,166.87,166.84,3.05888258]
[1730493423725,8.86463226,166.87,166.85,3.05888258]
[1730493423932,8.86463226,166.87,166.83,5.994]
[1730493424130,8.86463226,166.87,166.84,3.05919906]
[1730493424345,14.85733226,166.87,166.85,3.05919906]
[1730493424533,14.85733226,166.87,166.82,23.85013226]
[1730493424731,14.85733226,166.87,166.83,3.06273765]
[1730493424934,14.85733226,166.87,166.84,3.06273765]
[1730493425134,14.85733226,166.87,166.85,3.06273765]
[1730493425327,14.85733226,166.87,166.82,14.9855]
[1730493425533,14.85733226,166.87,166.83,3.06382415]
[1730493425835,14.85733226,166.87,166.84,3.06382415]
[1730493426041,8.86463226,166.86,166.85,3.06382415]
[1730493426351,8.86463226,166.86,166.82,14.9855]
[1730493426529,8.86463226,166.86,166.83,3.064734]
[1730493426734,8.86463226,166.85,166.84,3.064734]
[1730493427051,14.85803226,166.85,166.84,3.064734]
[1730493428348,38.63491626,166.85,166.84,3.064734]
[1730493428547,38.63491626,166.85,166.8,3.064734]
[1730493428843,8.86463226,166.84,166.81,3.064734]
[1730493429151,8.86463226,166.87,166.82,3.064734]
[1730493429333,14.85693226,166.88,166.83,11.92936626]
[1730493429532,23.776884,166.87,166.84,3.064734]
[1730493429837,5.9923,166.88,166.85,3.064734]
[1730493430037,5.9923,166.88,166.84,8.86463226]
[1730493430230,5.9923,166.88,166.85,3.06430156]
[1730493430430,5.9923,166.88,166.84,8.86463226]
[1730493430648,5.9923,166.88,166.85,3.06433484]
[1730493430838,5.9923,166.88,166.83,8.86463226]
[1730493431030,5.9923,166.88,166.84,3.06430479]
[1730493431232,5.9923,166.88,166.85,3.06430479]
[1730493431436,5.9923,166.88,166.83,14.85853226]
[1730493431636,5.9923,166.88,166.84,3.06408991]
[1730493431836,5.9923,166.88,166.85,3.06408991]
[1730493432043,5.9923,166.88,166.86,3.06408991]
[1730493432257,5.9923,166.88,166.84,3.06408991]
[1730493432433,5.9923,166.88,166.85,3.06408991]
[1730493432633,5.9923,166.88,166.83,14.85853226]
[1730493432832,5.9923,166.88,166.84,3.06447762]
[1730493433046,5.9923,166.88,166.84,6.12895524]
[1730493433351,5.9923,166.88,166.84,3.06447762]
[1730493433725,5.9923,166.88,166.85,3.06447762]
[1730493433929,5.9923,166.88,166.83,14.85853226]
[1730493433930,14.85693226,166.88,166.83,14.85853226]
[1730493434147,14.85693226,166.88,166.84,3.06482405]
[1730493434443,14.85693226,166.88,166.85,3.06482405]
[1730493434651,14.85693226,166.88,166.83,5.9939]
[1730493434831,14.85693226,166.88,166.84,3.06506482]
[1730493435030,14.85693226,166.88,166.85,3.06506482]
[1730493435231,14.85693226,166.88,166.83,5.9939]
[1730493435452,14.85693226,166.88,166.84,3.06506399]
[1730493435641,14.85693226,166.88,166.85,3.06506399]
[1730493435949,14.85693226,166.88,166.83,5.9939]
[1730493436352,14.85693226,166.88,166.83,8.86463226]
[1730493436550,15.7369,166.89,166.84,8.86463226]
[1730493436551,21.7289,166.89,166.84,8.86463226]
[1730493437936,21.7289,166.89,166.84,14.85833226]
[1730493438256,21.7289,166.89,166.85,3.06449257]
[1730493438634,8.86463226,166.88,166.85,3.06449257]
[1730493438958,8.86463226,166.88,166.84,5.9937]
[1730493439256,14.85703226,166.88,166.84,5.9937]
[1730493442158,14.85703226,166.88,166.81,14.9871]
[1730493442341,8.86463226,166.87,166.82,14.85883226]
[1730493443665,14.85703226,166.88,166.83,8.86463226]
[1730493444359,14.85703226,166.88,166.82,29.84503226]
[1730493444738,5.993,166.86,166.82,29.84503226]
[1730493445462,5.993,166.86,166.83,3.06891703]
[1730493446041,5.993,166.86,166.84,3.06891703]
[1730493446355,5.993,166.86,166.85,3.06891703]
[1730493446942,14.85743226,166.87,166.85,3.06891703]
[1730493447244,14.85743226,166.87,166.86,3.07026388]
[1730493448971,5.9928,166.87,166.86,3.07026388]
[1730493455773,5.9923,166.89,166.86,3.07026388]
[1730493455952,5.9923,166.89,166.85,14.85793226]
[1730493456153,5.9923,166.89,166.86,3.07278738]
[1730493456368,5.9923,166.89,166.85,14.85793226]
[1730493456571,5.9917,166.9,166.86,3.07353902]
[1730493457069,8.86463226,166.89,166.87,3.07257211]
[1730493457255,8.86463226,166.89,166.85,14.9835]
[1730493457574,8.86463226,166.88,166.82,8.86463226]
[1730493457779,8.86463226,166.88,166.83,3.07280549]
[1730493458071,8.86463226,166.88,166.84,3.07280549]
[1730493458272,8.86463226,166.88,166.85,3.07280549]
[1730493458469,8.86463226,166.88,166.86,3.07280549]
[1730493458647,8.86463226,166.88,166.87,3.07280549]
[1730493459469,32.64151626,166.88,166.87,3.07280549]
[1730493459673,5.9926,166.87,166.82,5.9942]
[1730493459877,8.86463226,166.84,166.83,3.07275524]
[1730493460765,8.86463226,166.85,166.83,3.07275524]
[1730493460969,8.86463226,166.86,166.81,8.86463226]
[1730493461173,23.776884,166.86,166.82,3.07357045]
[1730493461373,32.64151626,166.86,166.83,3.07357045]
[1730493461558,32.64151626,166.86,166.84,3.07357045]
[1730493461877,5.9934,166.85,166.8,8.86463226]
[1730493462176,5.993,166.86,166.81,11.93774134]
[1730493462481,14.85763226,166.86,166.82,3.07310908]
[1730493462775,14.85763226,166.86,166.83,3.07310908]
[1730493462973,14.85763226,166.86,166.84,3.07310908]
[1730493463176,8.86463226,166.85,166.8,14.988]
[1730493463482,8.86463226,166.86,166.81,3.07263953]
[1730493463660,8.86463226,166.86,166.82,3.07263953]
[1730493463861,8.86463226,166.86,166.83,3.07263953]
[1730493464061,8.86463226,166.86,166.84,3.07263953]
[1730493464279,8.86463226,166.86,166.8,29.84773226]
[1730493464482,5.9934,166.85,166.81,3.07229402]
[1730493464784,14.85803226,166.85,166.82,3.07229402]
[1730493464983,14.85803226,166.85,166.83,3.07229402]
[1730493465165,14.85803226,166.85,166.84,3.07229402]
[1730493465768,14.85803226,166.85,166.8,20.9831]
[1730493465969,15.2666,166.88,166.82,8.86463226]
[1730493465970,5.9926,166.87,166.82,8.86463226]
[1730493466284,5.9926,166.87,166.83,3.07240638]
[1730493466485,14.85723226,166.87,166.82,5.9943]
[1730493466668,14.85723226,166.87,166.83,3.07219205]
[1730493466870,14.85723226,166.87,166.82,5.9943]
[1730493467071,14.85723226,166.87,166.83,3.07219411]
[1730493467276,14.85723226,166.87,166.82,5.9943]
[1730493467474,14.85723226,166.87,166.83,3.0721444]
[1730493467677,14.85723226,166.87,166.82,5.9943]
[1730493467961,8.86463226,166.84,166.83,3.07212947]
[1730493469069,8.86463226,166.85,166.83,3.07212947]
[1730493469268,8.86463226,166.85,166.8,20.9831]
[1730493469470,8.86463226,166.85,166.81,3.07131771]
[1730493469775,8.86463226,166.85,166.82,3.07131771]
[1730493469980,8.86463226,166.85,166.83,3.07131771]
[1730493470186,8.86463226,166.85,166.8,20.9831]
[1730493470389,14.85823226,166.85,166.81,3.07138164]
[1730493470684,14.85823226,166.85,166.82,3.07138164]
[1730493471064,14.85823226,166.85,166.83,3.07138164]
[1730493471291,14.85823226,166.85,166.8,20.9831]
[1730493471489,14.85823226,166.85,166.81,3.07169764]
[1730493471682,14.85823226,166.85,166.82,3.07169764]
[1730493471989,14.85823226,166.85,166.83,3.07169764]
[1730493472286,14.85823226,166.85,166.8,20.9831]
[1730493472487,14.85823226,166.85,166.81,3.07161426]
[1730493472675,14.85823226,166.85,166.82,3.07161426]
[1730493472974,14.85823226,166.85,166.83,3.07161426]
[1730493473177,14.85823226,166.85,166.8,20.9831]
[1730493473388,14.85823226,166.85,166.81,3.07137659]
[1730493473685,14.85823226,166.85,166.82,3.07137659]
[1730493473876,14.85823226,166.85,166.83,3.07137659]
[1730493474080,14.85823226,166.85,166.84,3.07126857]
[1730493474287,30.12363226,166.88,166.84,3.07126857]
[1730493474582,5.9924,166.88,166.85,3.07126857]
[1730493474787,5.9924,166.88,166.84,5.9936]
[1730493475667,5.9924,166.88,166.85,3.07048038]
[1730493475869,5.9924,166.88,166.86,3.07048038]
[1730493476176,8.86463226,166.89,166.84,5.9936]
[1730493476381,14.85663226,166.89,166.85,3.0702012]
[1730493476585,14.85663226,166.89,166.86,3.0702012]
[1730493476889,14.85623226,166.9,166.85,8.86463226]
[1730493477075,14.85623226,166.9,166.86,3.07007229]
[1730493477274,14.85623226,166.9,166.87,3.07007229]
[1730493477473,14.85623226,166.9,166.85,8.86463226]
[1730493477679,14.85623226,166.9,166.86,3.06938124]
[1730493477878,14.85623226,166.9,166.87,3.06938124]
[1730493478082,8.86463226,166.89,166.85,5.9931]
[1730493478289,8.86463226,166.89,166.86,3.06936275]
[1730493478472,8.86463226,166.89,166.87,3.06936275]
[1730493478672,8.86463226,166.89,166.85,5.9931]
[1730493478894,8.86463226,166.89,166.86,3.06919755]
[1730493479092,14.85663226,166.89,166.87,3.06919755]
[1730493479397,14.85663226,166.89,166.86,3.06886796]
[1730493479582,14.85663226,166.89,166.87,3.06886796]
[1730493479784,14.85663226,166.89,166.86,3.06886796]
[1730493480081,14.85663226,166.89,166.87,3.06886796]
[1730493480288,14.85663226,166.89,166.86,3.06886796]
[1730493480585,14.85663226,166.89,166.87,3.06886796]
[1730493480777,8.86463226,166.88,166.86,3.06886796]
[1730493481295,8.86463226,166.88,166.85,5.9931]
[1730493481505,8.86463226,166.88,166.87,3.06885557]
[1730493481698,8.86463226,166.88,166.86,3.06882978]
[1730493481699,8.86463226,166.88,166.85,5.9931]
[1730493481892,8.86463226,166.88,166.86,3.06867017]
[1730493482069,8.86463226,166.88,166.85,5.9931]
[1730493482274,8.86463226,166.88,166.86,3.06849726]
[1730493482610,8.86463226,166.88,166.85,5.9931]
[1730493482801,8.86463226,166.88,166.86,3.06825895]
[1730493482980,8.86463226,166.88,166.85,5.9931]
[1730493483181,8.86463226,166.88,166.86,3.06814704]
[1730493483495,8.86463226,166.88,166.85,5.9931]
[1730493483669,8.86463226,166.88,166.86,3.06786115]
[1730493483870,8.86463226,166.88,166.84,14.9844]
[1730493484181,8.86463226,166.88,166.84,20.9781]
[1730493484380,8.86463226,166.88,166.85,3.06793199]
[1730493484586,8.86463226,166.88,166.86,3.06793199]